bitfinex/quotes_SOLUSD_20260120
["timestamp","ask_amount","ask_price","bid_price","bid_amount"]
[1768909764864,6.95471059,128.88,128.85,1.80100071]
[1768909765073,1.73781235,128.88,128.85,1.80100071]
[1768909765372,6.95375716,128.88,128.85,1.80100071]
[1768909765679,1.73781235,128.88,128.85,1.80100071]
[1768909765975,6.95368208,128.88,128.85,1.80100071]
[1768909769453,10.6580545,128.88,128.85,1.80100071]
[1768909769659,5.44218477,128.88,128.85,1.80100071]
[1768909770066,1.73781235,128.88,128.85,1.80100071]
[1768909770258,6.95720451,128.88,128.85,1.80100071]
[1768909779387,5.21939216,128.87,128.85,1.80100071]
[1768909779784,1.75166848,128.9,128.87,1.86571131]
[1768909789286,5.45553394,128.9,128.87,1.86571131]
[1768909792418,5.46646998,128.88,128.85,1.84333996]
[1768909792626,3.70386546,128.87,128.85,1.84333996]
[1768909793927,1.76260452,128.88,128.85,1.84333996]
[1768909794107,5.46646998,128.88,128.85,1.84333996]
[1768909794824,1.76472657,128.89,128.86,1.86348448]
[1768909795020,3.70386546,128.9,128.86,1.86348448]
[1768909795206,1.76541774,128.92,128.87,1.86348448]
[1768909795406,3.70386546,128.91,128.87,1.86348448]
[1768909795818,5.4692832,128.91,128.87,1.86348448]
[1768909796207,1.76610096,128.92,128.88,1.86348448]
[1768909796509,3.70386546,128.91,128.88,1.86348448]
[1768909796819,1.76610096,128.92,128.88,1.86348448]
[1768909797028,3.70386546,128.91,128.88,1.86348448]
[1768909797828,5.4706418,128.91,128.88,1.86348448]
[1768909798129,1.76744396,128.92,128.88,1.86348448]
[1768909798426,5.47130942,128.92,128.88,1.86348448]
[1768909798629,1.76744396,128.91,128.88,1.86348448]
[1768909799217,5.47130942,128.91,128.88,1.86348448]
[1768909800131,1.76875628,128.9,128.85,7.76079268]
[1768909800321,1.76875628,128.89,128.86,1.86348448]
[1768909801020,1.76940116,128.92,128.87,1.86348448]
[1768909801228,1.76940116,128.9,128.87,1.86348448]
[1768909801831,1.76940116,128.89,128.85,1.86348448]
[1768909802022,1.76940116,128.88,128.85,1.86348448]
[1768909802223,1.77003863,128.87,128.85,1.86348448]
[1768909802424,1.77003863,128.87,128.84,1.86348448]
[1768909803336,5.47453424,128.88,128.84,1.86348448]
[1768909805232,1.77066878,128.88,128.84,1.86348448]
[1768909805429,5.47453424,128.88,128.84,1.86348448]
[1768909805939,1.77066878,128.88,128.84,1.86348448]
[1768909806119,1.77066878,128.88,128.85,1.86348448]
[1768909808110,5.47453424,128.88,128.85,1.86348448]
[1768909812941,1.77066878,128.88,128.85,1.86348448]
[1768909813142,5.47453424,128.88,128.85,1.86348448]
[1768909818744,1.77066878,128.88,128.85,1.86348448]
[1768909819050,5.47453424,128.88,128.85,1.86348448]
[1768909819947,5.47774081,128.87,128.84,1.86348448]
[1768909821958,3.70386546,128.87,128.84,1.86348448]
[1768909822459,5.47774081,128.87,128.84,1.86348448]
[1768909822957,3.70386546,128.87,128.84,1.86348448]
[1768909826662,1.78380069,128.85,128.8,1.84785924]
[1768909826870,5.48766615,128.84,128.81,1.84785924]
[1768909827148,3.70386546,128.84,128.81,1.84785924]
[1768909827446,3.70386546,128.83,128.81,1.84785924]
[1768909827655,3.64386547,128.83,128.81,1.84785924]
[1768909827961,5.48813823,128.84,128.81,1.84785924]
[1768909830756,1.78565672,128.85,128.81,1.84785924]
[1768909830935,3.70386546,128.84,128.81,1.84785924]
[1768909832459,3.64386547,128.84,128.81,1.84785924]
[1768909832767,5.43041854,128.84,128.81,1.84785924]
[1768909833059,5.49319815,128.84,128.81,1.84785924]
[1768909835065,1.78785934,128.83,128.79,1.94785924]
[1768909835361,5.49450442,128.81,128.79,0.1]
[1768909835855,5.49450442,128.81,128.79,1.94785924]
[1768909836836,3.70664508,128.81,128.79,1.94785924]
[1768909837061,5.49492988,128.82,128.79,1.94785924]
[1768909842652,3.70664508,128.83,128.8,1.82351376]
[1768909843156,5.4429437,128.83,128.8,1.82351376]
[1768909851267,13.20421449,128.85,128.81,1.82351376]
[1768909851573,30.22421449,128.85,128.81,1.82351376]
[1768909851761,1.73629862,128.84,128.81,1.82351376]
[1768909854177,5.4429437,128.84,128.81,1.82351376]
[1768909856377,1.79650252,128.83,128.79,7.86451017]
[1768909856560,1.79650252,128.83,128.8,1.76747652]
[1768909856969,5.5031476,128.83,128.8,1.76747652]
[1768909857278,5.5031476,128.83,128.79,0.1]
[1768909857279,1.7968287,128.82,128.79,1.86747652]
[1768909858154,5.50347378,128.82,128.79,1.86747652]
[1768909860880,1.7968287,128.82,128.79,1.86747652]
[1768909861279,1.7968287,128.82,128.74,1.86747652]
[1768909861280,1.69809641,128.79,128.74,1.86747652]
[1768909861480,3.70664508,128.77,128.74,1.86747652]
[1768909861773,1.69809641,128.78,128.74,1.86747652]
[1768909861774,5.40474149,128.78,128.74,1.86747652]
[1768909862684,1.69809641,128.78,128.75,1.76747652]
[1768909862980,5.40504937,128.79,128.75,1.76747652]
[1768909863378,1.69840429,128.79,128.75,1.76747652]
[1768909863572,5.40504937,128.79,128.75,1.76747652]
[1768909863881,1.69870863,128.83,128.76,3.70664508]
[1768909864067,1.69870863,128.82,128.79,1.76747652]
[1768909864266,1.69870863,128.82,128.79,1.73747652]
[1768909868172,26.51085465,128.83,128.79,1.73747652]
[1768909868373,30.21749973,128.83,128.79,1.73747652]
[1768909869085,3.70664508,128.82,128.79,1.73747652]
[1768909869280,5.43480515,128.82,128.79,1.73747652]
[1768909869482,13.19766614,128.82,128.79,1.73747652]
[1768909869862,5.43480515,128.81,128.77,1.76747652]
[1768909874791,1.72816007,128.81,128.77,1.76747652]
[1768909875086,5.43480515,128.81,128.77,1.76747652]
[1768909875488,1.72612719,128.82,128.78,1.76747652]
[1768909875691,17.02,128.82,128.79,1.76747652]
[1768909876678,13.19515111,128.83,128.79,1.76747652]
[1768909877674,11.46902392,128.83,128.79,1.76747652]
[1768909877889,1.72548027,128.82,128.79,1.76747652]
[1768909880165,13.19356142,128.83,128.79,1.76747652]
[1768909882278,9.48691634,128.83,128.79,1.76747652]
[1768909882477,13.19356142,128.83,128.79,1.76747652]
[1768909885305,11.46902392,128.83,128.79,1.76747652]
[1768909885496,1.72274721,128.82,128.79,1.76747652]
[1768909889399,5.42826587,128.83,128.79,1.76747652]
[1768909889911,1.72162079,128.83,128.8,1.79878181]
[1768909890107,18.74134723,128.84,128.81,1.79878181]
[1768909890608,17.02,128.84,128.81,1.79878181]
[1768909890906,17.02,128.84,128.82,1.79878181]
[1768909891094,93.03847089,128.85,128.82,1.79878181]
[1768909891095,93.03820046,128.85,128.82,1.79878181]
[1768909892284,99.07808982,128.85,128.82,1.79878181]
[1768909892513,1.72080949,128.84,128.82,1.79878181]
[1768909894705,91.31712366,128.85,128.82,1.79878181]
[1768909894898,93.03740769,128.85,128.82,1.79878181]
[1768909901020,93.03590224,128.85,128.82,1.79878181]
[1768909907638,93.03590224,128.85,128.83,1.74828467]
[1768909907639,91.31712366,128.85,128.83,1.74828467]
[1768909909021,91.31712366,128.85,128.83,1.71828467]
[1768909909416,93.06361383,128.85,128.83,1.71828467]
[1768909909621,1.74649017,128.84,128.81,11.46881408]
[1768909909828,93.06361383,128.85,128.81,11.46881408]
[1768909910337,1.74627554,128.84,128.79,19.41097004]
[1768909910543,1.74627554,128.83,128.79,11.47010811]
[1768909911041,1.74627554,128.83,128.8,1.74828467]
[1768909911546,1.74627554,128.83,128.8,9.51220327]
[1768909911727,1.74627554,128.83,128.81,1.74828467]
[1768909912039,18.76606337,128.84,128.81,1.74828467]
[1768909915630,1.74491119,128.83,128.79,1.85764269]
[1768909915835,1.74491119,128.83,128.79,5.56336265]
[1768909916150,1.74491119,128.83,128.8,1.85764269]
[1768909919157,1.74363802,128.83,128.8,1.85764269]
[1768909919953,1.74363802,128.83,128.81,1.85764269]
[1768909920651,1.74332882,128.84,128.81,1.85764269]
[1768909920856,1.74332882,128.86,128.83,1.85764269]
[1768909921360,6.94321205,128.86,128.83,1.85764269]
[1768909921939,1.74332882,128.86,128.83,1.85764269]
[1768909922138,6.94271218,128.87,128.83,1.85764269]
[1768909922345,5.44844098,128.87,128.83,1.85764269]
[1768909923651,1.74272102,128.87,128.83,1.85764269]
[1768909923855,6.9421817,128.87,128.83,1.85764269]
[1768909924034,1.74242235,128.86,128.83,1.85764269]
[1768909924233,5.19946068,128.87,128.84,1.85764269]
[1768909924234,6.94158779,128.87,128.84,1.85764269]
[1768909924434,110.07925077,128.88,128.85,1.85764269]
[1768909924656,110.07925077,128.88,128.85,1.82764269]
[1768909924962,1.77212711,128.87,128.84,3.70571996]
[1768909925757,108.33712366,128.88,128.85,3.70571996]
[1768909925959,7.75767685,128.91,128.81,7.7633724]
[1768909926139,1.77154676,128.9,128.81,7.7633724]
[1768909926355,1.77154676,128.9,128.85,3.70571996]
[1768909926564,1.77154676,128.9,128.86,1.85764269]
[1768909928370,1.77154676,128.9,128.86,5.56336265]
[1768909930350,1.77154676,128.9,128.86,1.85764269]
[1768909930548,1.77154676,128.9,128.86,5.56336265]
[1768909930956,1.77154676,128.9,128.87,1.85764269]
[1768909933088,1.77095897,128.87,128.81,1.85764269]
[1768909933387,22.47667893,128.86,128.82,1.85764269]
[1768909933674,18.77095897,128.86,128.83,1.85764269]
[1768909934074,1.77102162,128.88,128.84,1.85764269]
[1768909934379,17.0,128.87,128.85,1.85764269]
[1768909938060,1.77102162,128.88,128.85,1.85764269]
[1768909939880,1.77132425,128.91,128.86,1.85764269]
[1768909940078,17.0,128.9,128.87,1.85764269]
[1768909940264,17.0,128.9,128.87,1.82764269]
[1768909940784,17.0,128.9,128.87,1.79764269]
[1768909941098,1.82078184,128.93,128.87,1.79764269]
[1768909941396,5.5265018,128.91,128.86,3.70571996]
[1768909941558,5.5265018,128.91,128.86,11.466064]
[1768909941758,5.5265018,128.91,128.86,7.76034404]
[1768909942081,1.82078184,128.91,128.86,11.466064]
[1768909942399,5.5265018,128.92,128.87,11.46540513]
[1768909942689,5.5265018,128.92,128.87,3.70571996]
[1768909942875,5.5265018,128.92,128.88,1.85764269]
[1768909943256,3.70571996,128.91,128.86,1.88117865]
[1768909943462,1.72841802,128.9,128.86,1.88117865]
[1768909944081,1.72841802,128.9,128.87,1.88117865]
[1768909946791,9.48591845,128.91,128.87,1.88117865]
[1768909947084,1.72841802,128.9,128.87,1.88117865]
[1768909947456,1.72841802,128.88,128.85,1.88117865]
[1768909947661,5.43413798,128.88,128.85,1.88117865]
[1768909949082,1.72841802,128.88,128.85,1.88117865]
[1768909949277,5.43413798,128.88,128.85,1.88117865]
[1768909949881,5.43413798,128.86,128.82,9.64366893]
[1768909950089,5.43413798,128.85,128.82,1.88117865]
[1768909950478,3.70571996,128.84,128.81,1.88117865]
[1768909950681,5.43413798,128.84,128.81,1.88117865]
[1768909951070,5.43413798,128.84,128.79,7.76430558]
[1768909951274,5.43413798,128.84,128.8,1.88117865]
[1768909951903,5.43413798,128.84,128.8,9.64510545]
[1768909953697,5.43413798,128.84,128.8,1.88117865]
[1768909953998,5.43413798,128.83,128.8,1.88117865]
[1768909954370,3.70571996,128.82,128.8,1.88117865]
[1768909954695,3.64571997,128.82,128.8,1.88117865]
[1768909954904,1.72841802,128.82,128.79,1.88117865]
[1768909955399,5.43580415,128.83,128.79,1.88117865]
[1768909956506,3.70738613,128.82,128.79,1.88117865]
[1768909956678,3.64738614,128.82,128.79,1.88117865]
[1768909958174,3.70738613,128.82,128.79,1.88117865]
[1768909958996,1.72841802,128.83,128.79,1.88117865]
[1768909959304,3.70738613,128.82,128.79,1.88117865]
[1768909965318,5.43580415,128.83,128.79,1.88117865]
[1768909966100,1.72841802,128.83,128.79,9.6457254]
[1768909966302,5.54568073,128.83,128.8,1.74126318]
[1768909968205,20.72738613,128.85,128.8,1.74126318]
[1768909968373,22.5661997,128.85,128.8,1.74126318]
[1768909969199,22.5661997,128.85,128.8,9.5048904]
[1768909969407,22.5661997,128.85,128.81,1.74126318]
[1768909970191,5.5461997,128.85,128.81,1.74126318]
[1768909972586,1.83881357,128.85,128.81,1.74126318]
[1768909975506,1.83881357,128.85,128.82,1.73337535]
[1768909977313,18.78543943,128.86,128.82,1.73337535]
[1768909977609,18.78543943,128.86,128.83,1.73337535]
[1768909977999,22.49282556,128.86,128.83,1.73337535]
[1768909978184,18.78543943,128.86,128.83,1.73337535]
[1768909978385,1.76543943,128.89,128.85,1.73337535]
[1768909980611,5.47282556,128.89,128.86,1.73337535]
[1768909981392,13.23139485,128.89,128.86,1.73337535]
[1768909981708,13.23139485,128.89,128.86,1.70337535]
[1768909982117,1.76543943,128.86,128.82,11.46983461]
[1768909982820,1.76543943,128.86,128.82,7.76244848]
[1768909983017,5.47282556,128.86,128.82,7.76244848]
[1768909983512,5.47282556,128.86,128.83,1.73337535]
[1768909983690,1.76543943,128.85,128.82,1.73337535]
[1768909984013,5.47282556,128.86,128.82,1.73337535]
[1768909984312,3.70738613,128.85,128.82,1.73337535]
[1768909984815,20.70738613,128.84,128.82,1.73337535]
[1768909985410,18.76543943,128.87,128.83,1.73337535]
[1768909985803,22.47282556,128.87,128.83,1.73337535]
[1768909986510,5.47282556,128.87,128.83,1.73337535]
[1768909986812,22.47282556,128.87,128.83,1.73337535]
[1768909987913,22.47282556,128.87,128.84,1.73337535]
[1768909990488,5.47282556,128.87,128.84,1.73337535]
[1768909990712,22.47282556,128.87,128.84,1.73337535]
[1768909991418,1.76543943,128.87,128.84,1.73337535]
[1768909993816,5.47282556,128.87,128.84,1.73337535]
[1768909994118,1.76543943,128.86,128.84,1.73337535]
[1768910003109,1.76543943,128.87,128.84,1.73337535]
[1768910003705,1.76543943,128.87,128.83,11.46951399]
[1768910003706,1.86209666,128.88,128.85,13.30150271]
[1768910004345,1.86209666,128.88,128.85,11.46820515]
[1768910004710,1.86209666,128.88,128.86,1.83329756]
[1768910004911,1.86209666,128.88,128.86,1.80329756]
[1768910007730,1.86209666,128.88,128.86,1.77329756]
[1768910011119,17.0,128.89,128.86,1.77329756]
[1768910011438,18.86209666,128.89,128.86,1.77329756]
[1768910012439,18.86209666,128.91,128.88,1.83329756]
[1768910012630,18.86209666,128.91,128.88,1.80329756]
[1768910013344,18.86209666,128.91,128.88,1.77329756]
[1768910014223,1.86209666,128.9,128.88,1.77329756]
[1768910015650,1.86209666,128.89,128.85,3.70738613]
[1768910016520,1.86209666,128.89,128.85,11.46832876]
[1768910016945,1.86209666,128.89,128.85,11.46418356]
[1768910017440,1.86209666,128.89,128.86,11.46353242]
[1768910017742,1.86209666,128.89,128.86,13.29682998]
[1768910020076,1.86209666,128.89,128.87,1.83329756]
[1768910020234,1.86209666,128.91,128.88,1.83329756]
[1768910020553,18.86209666,128.91,128.88,1.80329756]
[1768910020722,1.86209666,128.9,128.88,1.80329756]
[1768910029949,1.86261558,128.91,128.89,1.87206255]
[1768910030130,1.86261558,128.91,128.89,1.84206255]
[1768910032854,1.86261558,128.91,128.88,1.87206255]
[1768910033154,1.86261558,128.91,128.88,1.84206255]
[1768910039257,1.86261558,128.91,128.88,5.54530348]
[1768910039655,18.99251759,128.92,128.89,2.03026651]
[1768910041157,1.99251759,128.92,128.89,2.03026651]
[1768910041340,1.99251759,128.93,128.9,2.03026651]
[1768910043757,1.99251759,128.91,128.88,2.03026651]
[1768910059976,1.99251759,128.92,128.88,3.70324093]
[1768910060270,9.74899774,128.93,128.89,2.03026651]
[1768910060474,1.99251759,128.92,128.89,2.03026651]
[1768910061379,7.18604155,128.92,128.89,2.03026651]
[1768910061572,1.99251759,128.93,128.9,2.03026651]
[1768910061880,7.18623841,128.93,128.9,2.03026651]
[1768910063176,1.99251759,128.93,128.9,2.03026651]
[1768910063477,1.99251759,128.93,128.9,5.73350744]
[1768910064479,1.99251759,128.93,128.9,2.03026651]
[1768910074284,1.93294878,128.92,128.89,1.9525829]
[1768910074484,1.93294878,128.91,128.87,1.9525829]
[1768910075088,5.63618971,128.92,128.88,1.9525829]
[1768910075286,1.93294878,128.92,128.88,1.9525829]
[1768910076591,18.93294878,128.93,128.89,1.9525829]
[1768910076780,18.93294878,128.93,128.9,1.9525829]
[1768910078795,1.93294878,128.94,128.9,1.9525829]
[1768910079091,1.93294878,128.94,128.91,1.9525829]
[1768910087498,2.08146363,128.92,128.89,2.03991902]
[1768910089309,5.7817548,128.92,128.89,2.03991902]
[1768910091204,2.08146363,128.91,128.89,2.03991902]
[1768910091374,5.7817548,128.92,128.89,2.03991902]
[1768910091580,2.08146363,128.91,128.87,7.75945604]
[1768910091804,2.08146363,128.9,128.87,2.03991902]
[1768910097215,2.08146363,128.9,128.87,9.79959488]
[1768910097422,2.08146363,128.9,128.88,2.03067813]
[1768910099989,2.02894304,128.91,128.88,2.03067813]
[1768910100192,2.02894304,128.92,128.89,2.03067813]
[1768910100408,19.02894304,128.92,128.89,2.03067813]
[1768910100591,2.02894304,128.91,128.89,2.03067813]
[1768910100916,2.02894304,128.91,128.88,9.78967043]
[1768910103410,7.7557125,128.94,128.9,2.03067813]
[1768910103411,2.02894304,128.94,128.9,2.03067813]
[1768910103618,2.02894304,128.92,128.89,2.03067813]
[1768910105717,2.02894304,128.93,128.89,2.03067813]
[1768910105911,19.02894304,128.94,128.9,2.03067813]
[1768910106110,2.02894304,128.94,128.91,2.03067813]
[1768910108215,17.0,128.95,128.91,7.75721325]
[1768910108423,19.02894304,128.95,128.92,2.03067813]
[1768910108924,2.02894304,128.95,128.92,2.03067813]
[1768910111211,2.22894304,128.96,128.92,2.03067813]
[1768910112516,5.92923421,128.96,128.92,2.03067813]
[1768910112705,2.02894304,128.95,128.92,2.03067813]
[1768910118443,2.02894304,128.95,128.91,9.78789138]
[1768910119235,2.02894304,128.94,128.91,2.03067813]
[1768910120740,2.02894304,128.93,128.89,9.78898328]
[1768910121646,2.02894304,128.93,128.9,2.03067813]
[1768910128238,2.02894304,128.93,128.9,9.7886194]
[1768910129751,2.02894304,128.93,128.9,2.03067813]
[1768910132755,2.02894304,128.93,128.9,9.7885534]
[1768910134251,2.02894304,128.93,128.91,2.06119981]
[1768910134834,2.02894304,128.93,128.9,9.81907508]
[1768910136956,2.02894304,128.93,128.91,2.06119981]
[1768910138147,2.02894304,128.93,128.9,9.81907508]
[1768910139561,2.1547477,128.9,128.87,2.06119981]
[1768910139861,2.09474771,128.9,128.87,2.06119981]
[1768910140743,2.09474771,128.9,128.87,9.82095278]
[1768910140944,2.03474772,128.9,128.87,9.82095278]
[1768910141145,3.70043568,128.91,128.88,2.06119981]
[1768910142969,5.83104104,128.91,128.88,2.06119981]
[1768910145262,2.13060536,128.9,128.85,9.78786586]
[1768910145465,5.83104104,128.9,128.86,2.02693382]
[1768910145662,2.13060536,128.9,128.86,2.02693382]
[1768910146062,2.13060536,128.9,128.87,2.02693382]
[1768910155978,2.13019055,128.91,128.88,2.14222147]
[1768910160664,5.83062623,128.91,128.88,2.14222147]
[1768910163181,2.13019055,128.91,128.88,2.14222147]
[1768910163366,5.83062623,128.91,128.88,2.14222147]
[1768910164602,2.13019055,128.91,128.88,2.14222147]
[1768910164766,2.07019056,128.91,128.88,2.14222147]
[1768910164967,5.77062624,128.91,128.88,2.14222147]
[1768910165576,2.07019056,128.91,128.88,2.14222147]
[1768910170287,19.13019055,128.92,128.88,2.14222147]
[1768910170460,22.83062623,128.92,128.88,2.14222147]
[1768910173265,19.13019055,128.92,128.88,2.14222147]
[1768910173478,22.83062623,128.92,128.88,2.14222147]
[1768910177769,5.83062623,128.91,128.88,2.14222147]
[1768910178079,5.83062623,128.91,128.86,2.14222147]
[1768910178080,2.13019055,128.9,128.86,2.14222147]
[1768910179009,5.83062623,128.91,128.86,2.14222147]
[1768910179302,5.83062623,128.91,128.87,2.14222147]
[1768910182888,3.70043568,128.91,128.87,2.14222147]
[1768910183186,2.13019055,128.9,128.87,2.14222147]
[1768910183385,2.07019056,128.9,128.87,2.14222147]
[1768910186577,5.77062624,128.9,128.87,2.14222147]
[1768910186779,2.11703896,128.89,128.87,2.14222147]
[1768910186987,5.81747464,128.9,128.87,2.14222147]
[1768910188202,2.11703896,128.89,128.86,2.2109958]
[1768910199798,7.75743062,128.91,128.86,2.2109958]
[1768910200098,2.11703896,128.9,128.87,2.2109958]
[1768910202000,9.87446958,128.91,128.87,2.2109958]
[1768910202497,2.11703896,128.9,128.87,2.2109958]
[1768910206016,5.88642318,128.91,128.87,2.2109958]
[1768910206914,2.18472665,128.9,128.87,2.2109958]
[1768910212617,5.88708769,128.9,128.87,2.2109958]
[1768910214415,2.12906961,128.89,128.87,2.2109958]
[1768910214808,2.12906961,128.89,128.86,2.17109531]
[1768910217091,2.12906961,128.89,128.85,7.76064593]
[1768910217314,2.12906961,128.88,128.85,7.76080305]
[1768910217616,2.06906956,128.88,128.85,7.76080305]
[1768910217915,3.70236104,128.87,128.84,2.17109531]
[1768910218614,17.0,128.89,128.84,9.93265063]
[1768910218788,3.70236104,128.88,128.84,9.93265063]
[1768910219418,5.83143065,128.88,128.84,9.93265063]
[1768910220112,2.12906961,128.87,128.84,9.93265063]
[1768910221029,2.12906961,128.87,128.84,2.17109531]
[1768910221322,5.83143065,128.86,128.83,2.17109531]
[1768910221511,7.75982344,128.87,128.83,2.17109531]
[1768910221721,3.70236104,128.86,128.83,2.17109531]
[1768910221919,7.75982344,128.87,128.83,2.17109531]
[1768910222118,3.70236104,128.86,128.83,2.17109531]
[1768910224502,7.75982344,128.87,128.83,2.17109531]
[1768910224721,3.70236104,128.86,128.83,2.17109531]
[1768910227736,3.72255173,128.86,128.83,2.17109531]
[1768910230629,3.70236104,128.86,128.83,2.17109531]
[1768910237834,3.76520564,128.87,128.84,2.17109531]
[1768910239441,3.70236104,128.86,128.84,2.17109531]
[1768910242045,3.83604042,128.86,128.83,2.17109531]
[1768910242226,0.13367938,128.86,128.83,2.17109531]
[1768910242432,3.70236104,128.85,128.83,2.17109531]
[1768910243950,3.83604042,128.86,128.83,2.17109531]
[1768910245440,0.16996366,128.88,128.84,2.24802732]
[1768910245649,3.8723247,128.87,128.84,2.24802732]
[1768910246643,0.16996366,128.87,128.84,2.24802732]
[1768910247447,0.18390061,128.88,128.84,2.24802732]
[1768910247751,3.88626165,128.88,128.84,2.24802732]
[1768910250449,0.20421147,128.87,128.84,2.24802732]
[1768910250638,3.90657251,128.87,128.84,2.24802732]
[1768910253650,3.70236104,128.87,128.84,2.24802732]
[1768910253854,24.75884476,128.89,128.85,2.24802732]
[1768910253855,20.9261915,128.89,128.85,2.24802732]
[1768910254031,20.9261915,128.89,128.85,2.21802732]
[1768910255732,0.26653709,128.88,128.85,2.21802732]
[1768910257755,28.73988758,128.89,128.85,2.21802732]
[1768910259953,0.29124547,128.88,128.85,2.21802732]
[1768910264456,28.46221682,128.89,128.85,2.21802732]
[1768910264457,17.0,128.89,128.85,2.21802732]
[1768910264642,3.70364379,128.89,128.85,2.21802732]
[1768910264956,4.03056738,128.89,128.85,2.21802732]
[1768910267059,11.80035661,128.9,128.85,2.21802732]
[1768910267236,5.19994972,128.89,128.85,2.21802732]
[1768910267435,0.34385642,128.92,128.87,2.29908539]
[1768910267638,5.20011447,128.91,128.88,2.29908539]
[1768910267838,9.24761468,128.91,128.88,2.29908539]
[1768910268038,5.20011447,128.9,128.88,2.29908539]
[1768910268861,4.04750021,128.91,128.88,2.29908539]
[1768910269863,0.34385642,128.91,128.88,2.29908539]
[1768910270072,9.25116513,128.91,128.88,2.29908539]
[1768910270370,4.04750021,128.91,128.88,2.29908539]
[1768910272068,4.0691835,128.9,128.87,2.29908539]
[1768910272240,3.70364379,128.9,128.87,2.29908539]
[1768910272960,4.07444957,128.9,128.87,2.29908539]
[1768910273147,4.07965514,128.89,128.86,2.29908539]
[1768910273351,4.08480093,128.88,128.85,2.34505332]
[1768910274366,0.38624382,128.92,128.88,2.34505332]
[1768910274671,4.08988761,128.92,128.88,2.34505332]
[1768910274869,5.20168327,128.91,128.88,2.34505332]
[1768910275167,5.59295534,128.91,128.88,2.34505332]
[1768910280569,0.41556019,128.9,128.86,2.34505332]
[1768910280772,0.41556019,128.89,128.86,2.34505332]
[1768910281066,4.11920398,128.88,128.84,2.34505332]
[1768910289982,3.70364379,128.87,128.84,2.34505332]
[1768910290185,0.41556019,128.88,128.84,2.34505332]
[1768910290186,4.11920398,128.88,128.84,2.34505332]
[1768910290776,4.16376716,128.87,128.84,2.34505332]
[1768910291491,0.46012337,128.87,128.84,2.34505332]
[1768910291668,4.16376716,128.87,128.84,2.34505332]
[1768910292884,3.70364379,128.86,128.84,2.34505332]
[1768910293461,0.46012337,128.87,128.84,2.34505332]
[1768910293662,3.70364379,128.86,128.84,2.34505332]
[1768910296379,3.70364379,128.86,128.77,19.41396961]
[1768910296380,2.33294717,128.84,128.77,19.41396961]
[1768910296582,3.70364379,128.82,128.78,7.76473867]
[1768910296763,3.70364379,128.81,128.77,7.76551393]
[1768910297372,3.70364379,128.82,128.79,7.76424746]
[1768910298276,2.33294717,128.83,128.79,7.76424746]
[1768910298459,6.03659096,128.83,128.8,2.34505332]
[1768910299056,3.70364379,128.82,128.8,2.34505332]
[1768910299452,2.33294717,128.83,128.8,2.34505332]
[1768910299670,3.70364379,128.82,128.8,2.34505332]
[1768910300175,6.03659096,128.83,128.8,2.34505332]
[1768910301608,3.70364379,128.83,128.8,2.34505332]
[1768910303098,3.70364379,128.82,128.8,2.34505332]
[1768910305398,6.03659096,128.83,128.8,2.34505332]
[1768910306004,3.70364379,128.82,128.8,2.34505332]
[1768910308608,6.10225739,128.82,128.79,2.25372878]
[1768910313220,3.70364379,128.81,128.79,2.25372878]
[1768910313789,6.10225739,128.82,128.79,2.25372878]
[1768910316719,3.70364379,128.83,128.8,2.25372878]
[1768910316919,3.70364379,128.84,128.8,2.25372878]
[1768910317112,6.10225739,128.84,128.8,2.25372878]
[1768910322994,6.10512371,128.84,128.8,2.25372878]
[1768910323793,6.09385321,128.83,128.8,2.25372878]
[1768910326900,6.09385321,128.84,128.8,2.25372878]
[1768910328304,3.70651011,128.83,128.8,2.25372878]
[1768910330630,6.09385321,128.83,128.8,2.25372878]
[1768910331321,2.3873431,128.83,128.8,2.25372878]
[1768910331523,6.09385321,128.83,128.8,2.25372878]
[1768910337525,6.01656629,128.81,128.78,2.31337822]
[1768910337712,2.31005618,128.83,128.79,2.31337822]
[1768910338026,6.01656629,128.83,128.79,2.31337822]
[1768910338525,13.77873854,128.83,128.79,2.31337822]
[1768910339825,6.01656629,128.81,128.78,2.31337822]
[1768910342229,6.01656629,128.8,128.77,2.31337822]
[1768910343933,2.31005618,128.8,128.77,2.31337822]
[1768910344142,3.70651011,128.8,128.77,2.31337822]
[1768910344434,10.0734804,128.81,128.77,2.31337822]
[1768910344636,13.77999051,128.81,128.77,2.31337822]
[1768910347232,10.0734804,128.81,128.77,2.31337822]
[1768910347429,13.77999051,128.81,128.77,2.31337822]
[1768910348224,6.01656629,128.81,128.77,2.31337822]
[1768910352739,20.72651011,128.83,128.79,2.31337822]
[1768910353240,23.03656629,128.83,128.79,2.31337822]
[1768910353446,2.31005618,128.82,128.79,2.31337822]
[1768910358623,2.31005618,128.82,128.78,13.78501096]
[1768910359338,2.31005618,128.82,128.79,2.31337822]
[1768910365149,2.31005618,128.82,128.77,3.70651011]
[1768910365150,2.43438077,128.8,128.77,2.29929553]
[1768910369557,2.43438077,128.83,128.78,2.29929553]
[1768910369762,17.02,128.82,128.79,2.29929553]
[1768910370553,2.43438077,128.83,128.79,2.29929553]
[1768910370846,11.35100049,128.83,128.79,2.29929553]
[1768910371048,5.21010961,128.82,128.79,2.29929553]
[1768910372051,6.14089088,128.83,128.79,2.29929553]
[1768910372756,6.14089088,128.82,128.77,2.29929553]
[1768910372962,6.14089088,128.81,128.77,2.29929553]